bitfinex/quotes_BTCUSD_20240721
["timestamp","ask_amount","ask_price","bid_price","bid_amount"]
[1721528203194,0.681365,67412.0,67411.0,0.2092317]
[1721528203411,0.690365,67412.0,67411.0,0.2102317]
[1721528203612,0.621365,67412.0,67411.0,0.2102317]
[1721528204120,0.612365,67412.0,67411.0,0.2092317]
[1721528204645,0.598365,67412.0,67411.0,0.2092317]
[1721528204846,0.602365,67412.0,67411.0,0.2092317]
[1721528205021,0.597365,67412.0,67411.0,0.2082317]
[1721528205178,0.662365,67412.0,67411.0,0.20822537]
[1721528205376,0.665365,67412.0,67411.0,0.20822537]
[1721528205854,0.121673,67412.0,67411.0,0.28862537]
[1721528206057,0.003,67412.0,67411.0,0.28862537]
[1721528206641,0.194673,67412.0,67411.0,0.28862537]
[1721528207082,0.190673,67412.0,67411.0,0.28862537]
[1721528207360,0.190673,67412.0,67411.0,0.27395902]
[1721528207560,0.187673,67412.0,67411.0,0.27395902]
[1721528207736,0.187673,67412.0,67411.0,0.28863458]
[1721528207975,0.190673,67412.0,67411.0,0.28863458]
[1721528208151,0.187673,67412.0,67411.0,0.28863458]
[1721528208565,0.187673,67412.0,67411.0,0.29263233]
[1721528209720,0.187673,67412.0,67411.0,0.39263233]
[1721528209997,0.187673,67412.0,67411.0,0.39463233]
[1721528211977,0.187673,67412.0,67411.0,0.39463176]
[1721528212368,0.187673,67412.0,67411.0,0.39463154]
[1721528212594,0.187673,67412.0,67411.0,0.27144156]
[1721528213525,0.187673,67412.0,67411.0,0.26944156]
[1721528213973,0.187673,67412.0,67411.0,0.27044156]
[1721528214427,0.425019,67412.0,67411.0,0.39263238]
[1721528214901,0.425019,67412.0,67411.0,0.39463238]
[1721528215855,0.425019,67412.0,67411.0,0.39063238]
[1721528216669,0.425019,67412.0,67411.0,0.38863238]
[1721528216903,0.425019,67412.0,67411.0,0.38963238]
[1721528217158,0.425019,67412.0,67411.0,0.39263238]
[1721528218293,0.425019,67412.0,67411.0,0.39263131]
[1721528219914,0.425019,67412.0,67411.0,0.18019956]
[1721528219915,0.662365,67412.0,67411.0,0.18019956]
[1721528220114,0.899711,67412.0,67411.0,0.11959956]
[1721528220561,0.899711,67412.0,67411.0,0.104924]
[1721528220769,0.94416297,67412.0,67411.0,0.104924]
[1721528220985,0.94416479,67412.0,67411.0,0.100924]
[1721528221187,0.94700479,67412.0,67411.0,0.109766]
[1721528222038,0.902551,67412.0,67411.0,0.109766]
[1721528222266,0.596205,67412.0,67411.0,0.239224]
[1721528222478,0.596205,67412.0,67411.0,0.37125861]
[1721528222479,0.358859,67412.0,67411.0,0.37125861]
[1721528222683,0.358859,67412.0,67411.0,0.38593571]
[1721528223215,0.356859,67412.0,67411.0,0.38593571]
[1721528223433,0.357859,67412.0,67411.0,0.38593571]
[1721528223658,0.357859,67412.0,67411.0,0.2627431]
[1721528223858,0.357859,67412.0,67411.0,0.38693111]
[1721528224036,0.356859,67412.0,67411.0,0.38593111]
[1721528224382,0.356859,67412.0,67411.0,0.38593065]
[1721528224598,0.356859,67412.0,67411.0,0.38793065]
[1721528224806,0.356859,67412.0,67411.0,0.38593065]
[1721528225227,0.357859,67412.0,67411.0,0.39093065]
[1721528225961,0.00184,67412.0,67411.0,0.53647039]
[1721528226172,0.00184,67412.0,67411.0,0.66798639]
[1721528226420,0.00184,67412.0,67411.0,0.54479884]
[1721528226618,0.00184,67412.0,67411.0,0.66797668]
[1721528226768,0.00184,67412.0,67411.0,0.90532568]
[1721528226986,0.00184,67412.0,67411.0,0.9053253]
[1721528229322,0.00184,67412.0,67411.0,0.9013253]
[1721528229699,0.00184,67412.0,67411.0,0.9023253]
[1721528230120,0.00184,67412.0,67411.0,0.78014784]
[1721528230335,0.00184,67412.0,67411.0,0.89631735]
[1721528230550,0.00284,67412.0,67411.0,0.90331735]
[1721528230794,0.00384,67412.0,67411.0,0.91631735]
[1721528232248,0.00384,67412.0,67411.0,0.90747535]
[1721528232450,0.00384,67412.0,67411.0,0.91631735]
[1721528233215,0.00384,67412.0,67411.0,1.15366635]
[1721528233411,0.00384,67412.0,67411.0,1.14482297]
[1721528233612,0.00384,67412.0,67411.0,1.15366497]
[1721528233812,0.00384,67412.0,67411.0,1.39022463]
[1721528235889,0.00384,67412.0,67411.0,1.57576016]
[1721528236176,0.00384,67412.0,67411.0,1.56691816]
[1721528236312,0.00384,67412.0,67411.0,1.62576016]
[1721528236519,0.00384,67412.0,67411.0,1.31784584]
[1721528236720,0.00384,67412.0,67411.0,1.62573862]
[1721528239601,0.00384,67412.0,67411.0,1.31784584]
[1721528239765,0.00384,67412.0,67411.0,1.57572966]
[1721528240772,0.00384,67412.0,67411.0,1.62572966]
[1721528241446,0.00384,67412.0,67411.0,2.22572966]
[1721528241793,0.00384,67412.0,67411.0,2.17572966]
[1721528241991,0.00384,67412.0,67411.0,2.22572966]
[1721528242451,0.00384,67412.0,67411.0,2.37572966]
[1721528242668,0.00384,67412.0,67411.0,1.57572966]
[1721528242879,0.00384,67412.0,67411.0,1.26784584]
[1721528243078,0.00384,67412.0,67411.0,1.62573124]
[1721528245211,0.00384,67412.0,67411.0,2.24573124]
[1721528246226,0.00384,67412.0,67411.0,1.62573124]
[1721528246377,0.00384,67412.0,67411.0,2.50573124]
[1721528249250,0.00384,67412.0,67411.0,2.19784584]
[1721528249594,0.00384,67412.0,67411.0,2.50572866]
[1721528249839,0.00384,67412.0,67411.0,2.19784584]
[1721528250040,0.00384,67412.0,67411.0,1.62572866]
[1721528250243,0.00384,67412.0,67411.0,2.34572866]
[1721528250720,0.00384,67412.0,67411.0,2.33572866]
[1721528251488,0.00384,67412.0,67411.0,1.62572866]
[1721528251690,0.00384,67412.0,67411.0,2.22572866]
[1721528252501,0.00384,67412.0,67411.0,2.46306511]
[1721528254705,0.00384,67412.0,67411.0,2.22571611]
[1721528255342,0.00384,67412.0,67411.0,2.46306511]
[1721528255697,0.00384,67412.0,67411.0,2.46305297]
[1721528256921,0.00384,67412.0,67411.0,2.46899397]
[1721528258519,0.00384,67412.0,67411.0,1.86899397]
[1721528258736,0.00384,67412.0,67411.0,2.54899397]
[1721528258957,0.00384,67412.0,67411.0,2.5489984]
[1721528261746,0.00384,67412.0,67411.0,2.3116494]
[1721528261951,0.00384,67412.0,67411.0,1.6316494]
[1721528262160,0.00384,67412.0,67411.0,0.95903784]
[1721528262388,0.00384,67412.0,67411.0,0.96865702]
[1721528262603,0.00384,67412.0,67411.0,0.66078884]
[1721528262815,0.00384,67412.0,67411.0,1.2060349]
[1721528265107,0.00384,67412.0,67411.0,0.89813784]
[1721528265324,0.00384,67412.0,67411.0,0.65194684]
[1721528265528,0.00384,67412.0,67411.0,0.95984519]
[1721528265825,0.00384,67412.0,67411.0,1.20603619]
[1721528266003,0.00384,67412.0,67411.0,0.96868719]
[1721528266854,0.00384,67412.0,67411.0,0.95984519]
[1721528267686,0.00384,67412.0,67411.0,0.96868719]
[1721528267839,0.00384,67412.0,67411.0,0.95984519]
[1721528268277,0.00384,67412.0,67411.0,0.96868719]
[1721528268472,0.00384,67412.0,67411.0,0.95984519]
[1721528269705,0.00384,67412.0,67411.0,0.96868719]
[1721528269903,0.00384,67412.0,67411.0,0.95984519]
[1721528270112,0.00384,67412.0,67411.0,1.19719419]
[1721528271456,0.00384,67412.0,67411.0,0.88929584]
[1721528271663,0.00384,67412.0,67411.0,1.19719609]
[1721528272471,0.00384,67412.0,67411.0,1.20603809]
[1721528273037,0.00384,67412.0,67411.0,0.96868909]
[1721528274742,0.00384,67412.0,67411.0,0.66078884]
[1721528274949,0.00384,67412.0,67411.0,0.96868909]
[1721528275115,0.00384,67412.0,67411.0,0.66078884]
[1721528275321,0.00384,67412.0,67411.0,0.96869174]
[1721528277463,0.00384,67412.0,67411.0,1.01452076]
[1721528277676,0.00384,67412.0,67411.0,0.778009]
[1721528277822,0.00384,67412.0,67411.0,0.65484784]
[1721528278029,0.00384,67412.0,67411.0,0.77801721]
[1721528278433,0.08034,67412.0,67411.0,0.77801721]
[1721528278633,0.21424,67412.0,67411.0,0.26761247]
[1721528279330,0.332913,67412.0,67411.0,0.25877047]
[1721528280714,0.263913,67412.0,67411.0,0.26762406]
[1721528280916,0.14524,67412.0,67411.0,0.26762406]
[1721528282430,0.08034,67412.0,67411.0,0.26762406]
[1721528283546,0.08034,67412.0,67411.0,0.26761875]
[1721528283697,0.08034,67412.0,67411.0,0.26761854]
[1721528286943,0.08034,67412.0,67411.0,0.1444431]
[1721528288932,0.199013,67412.0,67411.0,0.1444431]
[1721528291215,0.199013,67412.0,67411.0,0.129766]
[1721528291471,0.199013,67412.0,67411.0,0.14441532]
[1721528292539,0.742705,67412.0,67411.0,0.14441532]
[1721528292755,1.1383549,67412.0,67411.0,0.13557332]
[1721528292882,1.040351,67412.0,67411.0,0.120924]
[1721528294117,1.06355946,67412.0,67411.0,0.120924]
[1721528294513,1.040351,67412.0,67411.0,0.120924]
[1721528294717,1.037351,67412.0,67411.0,0.100924]
[1721528295210,1.039351,67412.0,67411.0,0.100924]
[1721528295415,1.04838201,67412.0,67411.0,0.100924]
[1721528295751,1.04738201,67412.0,67411.0,0.100924]
[1721528295952,1.05038201,67412.0,67411.0,0.100924]
[1721528304498,1.05038201,67412.0,67411.0,0.109766]
[1721528304698,0.91358201,67412.0,67411.0,0.109766]
[1721528305006,0.36989001,67412.0,67411.0,0.109766]
[1721528305211,0.01387101,67412.0,67411.0,0.109766]
[1721528305411,0.36989001,67412.0,67411.0,0.109766]
[1721528305697,0.36989001,67412.0,67411.0,0.12444547]
[1721528306077,0.36689001,67412.0,67411.0,0.12444547]
[1721528306518,0.357859,67412.0,67411.0,0.12444547]
[1721528307074,0.357859,67412.0,67411.0,0.2476331]
[1721528307275,0.356859,67412.0,67411.0,0.24763128]
[1721528307679,0.359859,67412.0,67411.0,0.25263128]
[1721528307884,0.359859,67412.0,67411.0,0.24763128]
[1721528308291,0.356859,67412.0,67411.0,0.25163128]
[1721528308468,0.356859,67412.0,67411.0,0.25363128]
[1721528310418,0.356859,67412.0,67411.0,0.13044547]
[1721528310596,0.356859,67412.0,67411.0,0.25363418]
[1721528310828,0.119513,67412.0,67411.0,0.25363418]
[1721528311036,0.00084,67412.0,67411.0,0.43800818]
[1721528311238,0.00084,67412.0,67411.0,0.39973418]
[1721528311618,0.0005034,67412.0,67411.0,0.39973418]
[1721528311846,0.0005034,67412.0,67411.0,0.39773418]
[1721528311979,0.0005034,67412.0,67411.0,0.39373418]
[1721528312190,0.0005034,67412.0,67411.0,0.39673418]
[1721528312563,0.0005034,67412.0,67411.0,0.40173418]
[1721528312691,0.0005034,67412.0,67411.0,0.39289218]
[1721528312910,0.0005034,67412.0,67411.0,0.40173418]
[1721528313106,0.0005034,67412.0,67411.0,0.39289218]
[1721528313471,0.0005034,67412.0,67411.0,0.40173418]
[1721528313798,0.0005034,67412.0,67411.0,0.27854547]
[1721528314063,0.0005034,67412.0,67411.0,0.40172357]
[1721528314230,0.0005034,67412.0,67411.0,0.39288157]
[1721528314428,0.0005034,67412.0,67411.0,0.52039757]
[1721528314628,0.0005034,67412.0,67411.0,0.75774657]
[1721528315351,0.0005034,67412.0,67411.0,0.75474657]
[1721528315754,0.0005034,67412.0,67411.0,0.75974657]
[1721528316756,0.0005034,67412.0,67411.0,0.75474657]
[1721528316959,0.0015034,67412.0,67411.0,0.75790457]
[1721528317170,0.0015034,67412.0,67411.0,0.76174657]
[1721528317365,0.0025034,67412.0,67411.0,0.76089723]
[1721528317589,0.0025034,67412.0,67411.0,0.76973923]
[1721528317827,0.0025034,67412.0,67411.0,1.16147012]
[1721528318043,0.0015034,67412.0,67411.0,1.15347012]
[1721528318175,0.0025034,67412.0,67411.0,1.16347012]
[1721528318368,0.0015034,67412.0,67411.0,1.15147012]
[1721528318567,0.0015034,67412.0,67411.0,1.16347012]
[1721528320519,0.0015034,67412.0,67411.0,1.4508131]
[1721528320767,0.0015034,67412.0,67411.0,1.4008131]
[1721528320916,0.0015034,67412.0,67411.0,1.63733698]
[1721528321110,0.0015034,67412.0,67411.0,1.58555336]
[1721528321691,0.0015034,67412.0,67411.0,1.64571136]
[1721528322570,0.0015034,67412.0,67411.0,1.65455336]
[1721528322768,0.0015034,67412.0,67411.0,1.64571136]
[1721528323504,0.0015034,67412.0,67411.0,1.33780621]
[1721528323704,0.0015034,67412.0,67411.0,1.70453004]
[1721528324151,0.0015034,67412.0,67411.0,1.64568804]
[1721528324755,0.0015034,67412.0,67411.0,1.70453004]
[1721528324962,0.0015034,67412.0,67411.0,1.64568804]
[1721528325529,0.0015034,67412.0,67411.0,1.70453004]
[1721528325731,0.0015034,67412.0,67411.0,1.64568804]
[1721528326139,0.0015034,67412.0,67411.0,1.65453004]
[1721528326321,0.0015034,67412.0,67411.0,1.70453004]
[1721528326703,0.0015034,67412.0,67411.0,1.39664821]
[1721528326904,0.0015034,67412.0,67411.0,1.64568529]
[1721528327113,0.0015034,67412.0,67411.0,1.70452729]
[1721528327911,0.0015034,67412.0,67411.0,1.88303429]
[1721528328516,0.0015034,67412.0,67411.0,1.94187629]
[1721528328812,0.0015034,67412.0,67411.0,1.89187629]
[1721528329391,0.0015034,67412.0,67411.0,1.58552729]
[1721528329805,0.0015034,67412.0,67411.0,1.58553402]
[1721528330340,0.0015034,67412.0,67411.0,1.63731229]
[1721528330515,0.0015034,67412.0,67411.0,1.58553611]
[1721528332527,0.0015034,67412.0,67411.0,1.57669411]
[1721528332749,0.0015034,67412.0,67411.0,1.58553611]
[1721528332949,0.0015034,67412.0,67411.0,1.58553307]
[1721528334227,0.0015034,67412.0,67411.0,1.57669107]
[1721528335359,0.0015034,67412.0,67411.0,1.63553307]
[1721528336197,0.0015034,67412.0,67411.0,1.27764821]
[1721528336396,0.0015034,67412.0,67411.0,1.58552809]
[1721528339472,0.0015034,67412.0,67411.0,1.58553016]
[1721528341883,0.0015034,67412.0,67411.0,1.27764821]
[1721528342074,0.0015034,67412.0,67411.0,1.58553016]
[1721528342307,0.0015034,67412.0,67411.0,1.27764821]
[1721528342463,0.0015034,67412.0,67411.0,1.58553016]
[1721528345358,0.0015034,67412.0,67411.0,1.58477914]
[1721528348092,0.0015034,67412.0,67411.0,1.27689719]
[1721528348387,0.0015034,67412.0,67411.0,1.58477915]
[1721528351378,0.0015034,67412.0,67411.0,1.58479167]
[1721528352968,0.0478374,67424.0,67423.0,0.008842]
[1721528353331,0.0478374,67424.0,67423.0,0.13199979]
[1721528353506,0.0478374,67424.0,67423.0,0.14671366]
[1721528354067,0.0478374,67424.0,67423.0,0.02355587]
[1721528354266,0.0508374,67424.0,67423.0,0.14671433]
[1721528354698,0.0508374,67424.0,67423.0,0.14671372]
[1721528354925,0.0518374,67424.0,67423.0,0.14671372]
[1721528355143,0.0518374,67424.0,67423.0,0.14671327]
[1721528355827,0.1262374,67424.0,67423.0,0.14671327]
[1721528356267,0.1282374,67424.0,67423.0,0.14671327]
[1721528357851,0.002,67424.0,67423.0,0.36088366]
[1721528358057,0.002,67424.0,67423.0,0.48403714]
[1721528360543,0.00084,67428.0,67424.0,0.118651]
[1721528360910,0.00084,67428.0,67427.0,0.008842]
[1721528361116,0.00084,67428.0,67427.0,0.13199327]
[1721528361287,0.00084,67428.0,67427.0,0.14670477]
[1721528362917,0.00084,67428.0,67427.0,0.15270477]
[1721528363639,0.00084,67428.0,67427.0,0.15670477]
[1721528364009,0.00084,67428.0,67427.0,0.27535077]
[1721528364210,0.00084,67428.0,67427.0,0.2753499]
[1721528365304,0.00084,67428.0,67427.0,0.4168499]
[1721528366980,0.00084,67428.0,67427.0,0.5168499]
[1721528367475,0.00084,67428.0,67427.0,0.3936995]
[1721528367646,0.00084,67428.0,67427.0,0.51684602]
[1721528367990,0.00084,67428.0,67427.0,1.14581376]
[1721528368176,0.00084,67428.0,67427.0,1.33052232]
[1721528368470,0.00084,67428.0,67427.0,1.56781532]
[1721528370623,0.00084,67428.0,67427.0,1.56779956]
[1721528373696,0.00084,67428.0,67427.0,1.25996024]
[1721528373876,0.00084,67428.0,67427.0,1.56779949]
[1721528376918,0.00084,67428.0,67427.0,1.56778667]
[1721528378542,0.00084,67428.0,67427.0,1.33049367]
[1721528380007,0.00084,67428.0,67427.0,1.09320067]
[1721528380216,0.00084,67428.0,67427.0,0.59576871]
[1721528380470,0.00084,67428.0,67427.0,0.52971463]
[1721528380685,0.00084,67428.0,67427.0,0.41106863]
[1721528380836,0.13974,67428.0,67427.0,0.41107589]
[1721528381257,0.258385,67428.0,67427.0,0.41107589]
[1721528381486,0.13974,67428.0,67427.0,0.41107589]
[1721528382291,0.258385,67428.0,67427.0,0.25669415]
[1721528382473,0.495675,67428.0,67427.0,0.25669415]
[1721528382945,0.495675,67428.0,67427.0,0.25269415]
[1721528383264,0.495675,67428.0,67427.0,0.25569415]
[1721528383473,0.495675,67428.0,67427.0,0.25570102]
[1721528383697,0.495675,67428.0,67427.0,0.25270102]
[1721528383900,0.495675,67428.0,67427.0,0.24670102]
[1721528384114,0.495675,67428.0,67427.0,0.25070102]
[1721528384292,0.732965,67428.0,67427.0,0.24685902]
[1721528384482,0.970255,67428.0,67427.0,0.24185902]
[1721528384840,0.732965,67428.0,67427.0,0.24785902]
[1721528385045,0.732965,67428.0,67427.0,0.25670102]
[1721528386465,0.732965,67428.0,67427.0,0.25671316]
[1721528386871,0.732965,67428.0,67427.0,0.24787116]
[1721528387420,0.732965,67428.0,67427.0,0.25671316]
[1721528387617,0.732965,67428.0,67427.0,0.25071316]
[1721528388036,0.732965,67428.0,67427.0,0.25271316]
[1721528388756,0.732965,67428.0,67427.0,0.24871316]
[1721528388971,0.801965,67428.0,67427.0,0.24871316]
[1721528389181,0.802965,67428.0,67427.0,0.24871316]
[1721528389589,0.801965,67428.0,67427.0,0.24871316]
[1721528391830,0.801965,67428.0,67427.0,0.24871244]
[1721528396933,0.802965,67428.0,67427.0,0.24871244]
[1721528397450,0.802965,67428.0,67427.0,0.23987044]
[1721528398094,1.040255,67428.0,67427.0,0.23987044]
[1721528398296,1.040255,67428.0,67427.0,0.1147115]
[1721528398297,1.039255,67428.0,67427.0,0.1147115]
[1721528398501,1.039255,67428.0,67427.0,0.1157115]
[1721528398938,1.08369452,67428.0,67427.0,0.1]
[1721528399149,1.08369535,67428.0,67427.0,0.101]
[1721528399550,1.08469535,67428.0,67427.0,0.101]
[1721528399751,1.040255,67428.0,67427.0,0.101]
[1721528399994,1.039255,67428.0,67427.0,0.101]
[1721528400194,1.08369535,67428.0,67427.0,0.101]
[1721528400594,1.08369535,67428.0,67427.0,0.1]
[1721528401134,1.08469535,67428.0,67427.0,0.1]
[1721528401340,1.039255,67428.0,67427.0,0.1]
[1721528401549,1.043255,67428.0,67427.0,0.108842]
[1721528401729,0.598065,67428.0,67427.0,0.108842]
[1721528402068,0.360775,67428.0,67427.0,0.108842]
[1721528402268,0.123485,67428.0,67427.0,0.12354987]
[1721528402465,0.357775,67428.0,67427.0,0.12354987]
[1721528403113,0.595065,67428.0,67427.0,0.12354987]
[1721528403313,0.357775,67428.0,67427.0,0.12354987]
[1721528403660,0.360775,67428.0,67427.0,0.12354846]
[1721528403837,0.359775,67428.0,67427.0,0.24670785]
[1721528404042,0.359775,67428.0,67427.0,0.108842]
[1721528404259,0.360775,67428.0,67427.0,0.12354846]
[1721528404416,0.359775,67428.0,67427.0,0.23200264]
[1721528404619,0.359775,67428.0,67427.0,0.24670654]
[1721528404798,0.359775,67428.0,67427.0,0.25170654]
[1721528404999,0.359775,67428.0,67427.0,0.24670654]
[1721528405258,0.356775,67428.0,67427.0,0.24670654]
[1721528405469,0.356775,67428.0,67427.0,0.25170654]
[1721528405680,0.356775,67428.0,67427.0,0.24970654]
[1721528406143,0.356775,67428.0,67427.0,0.24670654]
[1721528406551,0.356775,67428.0,67427.0,0.25070654]
[1721528407202,0.356775,67428.0,67427.0,0.25670654]
[1721528407605,0.356775,67428.0,67427.0,0.32130654]
[1721528407842,0.356775,67428.0,67427.0,0.2770459]
[1721528408047,0.119485,67428.0,67427.0,0.40020474]
[1721528409322,0.356775,67428.0,67427.0,0.40020474]
[1721528411239,0.356775,67428.0,67427.0,0.40019802]
[1721528414804,0.356775,67428.0,67427.0,0.25670181]
[1721528417486,0.356775,67428.0,67427.0,0.24670181]
[1721528417659,0.356775,67428.0,67427.0,0.24670234]
[1721528417923,0.356775,67428.0,67427.0,0.24970198]
[1721528418543,0.356775,67428.0,67427.0,0.25470198]
[1721528419017,0.356775,67428.0,67427.0,0.25170198]
[1721528419975,0.356775,67428.0,67427.0,0.24670198]
[1721528420351,0.356775,67428.0,67427.0,0.23885998]
[1721528420352,0.594065,67428.0,67427.0,0.23885998]
[1721528420553,0.975455,67428.0,67427.0,0.23885998]
[1721528420764,0.975455,67428.0,67427.0,0.23886408]
[1721528420976,0.999455,67428.0,67427.0,0.22716018]
[1721528421200,0.999455,67428.0,67427.0,0.1]
[1721528421201,1.78617634,67428.0,67427.0,0.1]
[1721528421408,1.82733434,67428.0,67427.0,0.1]
[1721528421583,1.82633434,67428.0,67427.0,0.105]
[1721528421786,1.82633434,67428.0,67427.0,0.108]
[1721528421787,1.69517634,67428.0,67427.0,0.108]
[1721528421987,1.69517634,67428.0,67427.0,0.103]
[1721528422193,1.78517634,67428.0,67427.0,0.103]
[1721528422394,1.69517634,67428.0,67427.0,0.1]
[1721528422569,1.69817634,67428.0,67427.0,0.1]
[1721528423327,1.69817634,67428.0,67427.0,0.102]
[1721528423762,1.69817634,67428.0,67427.0,0.1]
[1721528423962,1.69517634,67428.0,67427.0,0.1]
[1721528424323,1.69917634,67428.0,67427.0,0.1]
[1721528429317,1.12565715,67428.0,67427.0,0.1]
[1721528429728,1.19465715,67428.0,67427.0,0.1]
[1721528433333,1.30574199,67428.0,67427.0,0.1]
[1721528433585,1.30573857,67428.0,67427.0,0.1]
[1721528434995,1.19465715,67428.0,67427.0,0.1]
[1721528435224,1.30573857,67428.0,67427.0,0.1]
[1721528435415,1.44286328,67428.0,67427.0,0.1]
[1721528436372,1.53286328,67428.0,67427.0,0.1]
[1721528436660,1.44284805,67428.0,67427.0,0.1]
[1721528439783,1.4428387,67428.0,67427.0,0.1]
[1721528440159,1.30571399,67428.0,67427.0,0.1]
[1721528441157,1.39571399,67428.0,67427.0,0.1]
[1721528441357,1.83738573,67428.0,67427.0,0.1]
[1721528441559,1.74738573,67428.0,67427.0,0.1]
[1721528441822,1.83738573,67428.0,67427.0,0.1]
[1721528441941,1.74738573,67428.0,67427.0,0.1]
[1721528442395,1.9017353,67428.0,67427.0,0.1]
[1721528444211,1.9428933,67428.0,67427.0,0.1]
[1721528444618,1.92183646,67428.0,67427.0,0.1]
[1721528444821,1.79067846,67428.0,67427.0,0.1]
[1721528445122,1.63632889,67428.0,67427.0,0.1]
[1721528445323,1.74737793,67428.0,67427.0,0.1]
[1721528445564,1.63632889,67428.0,67427.0,0.1]
[1721528445897,1.74737484,67428.0,67427.0,0.1]
[1721528446258,1.74737389,67428.0,67427.0,0.1]
[1721528449467,1.13860129,67428.0,67427.0,0.2442]
[1721528449683,1.02755715,67428.0,67427.0,0.2442]
[1721528450002,0.95855715,67428.0,67427.0,0.26765421]
[1721528450206,0.00484,67428.0,67427.0,0.39081957]
[1721528450645,0.123485,67428.0,67427.0,0.39081957]
[1721528451043,0.00184,67428.0,67427.0,0.39081957]
[1721528451384,0.00384,67428.0,67427.0,0.38197757]
[1721528451668,0.00484,67428.0,67427.0,0.39081957]
[1721528451807,0.00084,67428.0,67427.0,0.39081957]
[1721528452008,0.00084,67428.0,67427.0,0.39681957]
[1721528452232,0.00084,67428.0,67427.0,0.40081957]
[1721528452441,0.00084,67428.0,67427.0,0.40080763]
[1721528452861,0.00084,67428.0,67427.0,0.39196563]
[1721528453064,0.00084,67428.0,67427.0,0.40080763]
[1721528453269,0.00084,67428.0,67427.0,0.39480763]
[1721528453678,0.00084,67428.0,67427.0,0.39196563]
[1721528454030,0.00084,67428.0,67427.0,0.38591209]
[1721528454250,0.00084,67428.0,67427.0,0.39775409]
[1721528454440,0.00184,67428.0,67427.0,0.39775409]
[1721528454737,0.00184,67428.0,67427.0,0.40175409]
[1721528454939,0.00184,67428.0,67427.0,0.39775409]
[1721528455238,0.00084,67428.0,67427.0,0.39675409]
[1721528455459,0.00284,67428.0,67427.0,0.40475409]
[1721528455704,0.00284,67428.0,67427.0,0.40475193]
[1721528455890,0.00184,67428.0,67427.0,0.39875193]
[1721528456028,0.00184,67428.0,67427.0,0.75469093]
[1721528457156,0.00084,67428.0,67427.0,0.75169093]
[1721528457558,0.00184,67428.0,67427.0,0.75869093]
[1721528457910,0.00184,67428.0,67427.0,0.74669093]
[1721528458142,0.00384,67428.0,67427.0,1.15236567]
[1721528458958,0.00384,67428.0,67427.0,1.15235751]
[1721528461824,0.00384,67428.0,67427.0,1.02921441]
[1721528462029,0.00384,67428.0,67427.0,1.15235736]
[1721528467544,0.00384,67428.0,67427.0,1.02921441]
[1721528467805,0.00384,67428.0,67427.0,1.15235581]
[1721528469839,0.00384,67428.0,67427.0,0.91506281]
[1721528470689,0.00384,67428.0,67427.0,0.79192141]
[1721528470875,0.00384,67428.0,67427.0,0.91506306]
[1721528471265,0.00384,67428.0,67427.0,0.40474304]
[1721528471705,0.00384,67428.0,67427.0,0.52338904]
[1721528472425,0.00384,67428.0,67427.0,0.40474304]
[1721528473250,0.00384,67428.0,67427.0,0.40566704]
[1721528473788,0.00384,67428.0,67427.0,0.28252467]
[1721528473989,0.00384,67428.0,67427.0,0.40567078]
[1721528474814,0.00384,67428.0,67427.0,0.52431678]
[1721528475013,0.00384,67428.0,67427.0,0.76160978]
[1721528475214,0.00384,67428.0,67427.0,0.52431678]
[1721528475418,0.00384,67428.0,67427.0,0.40117067]
[1721528475638,0.00384,67428.0,67427.0,0.63846367]
[1721528478186,0.00384,67428.0,67427.0,1.03013841]
[1721528478513,0.00384,67428.0,67427.0,1.26743141]
[1721528481094,0.00384,67428.0,67427.0,1.31743141]
[1721528481459,0.00384,67428.0,67427.0,1.60472441]
[1721528482236,0.00284,67428.0,67427.0,1.59872441]
[1721528482415,0.00284,67428.0,67427.0,1.59072441]
[1721528482416,0.00084,67428.0,67427.0,1.59072441]
[1721528482577,0.00084,67428.0,67427.0,1.59672441]
[1721528483115,0.00084,67428.0,67427.0,1.59072441]
[1721528483512,0.00084,67428.0,67427.0,1.60472441]
[1721528483969,0.00084,67428.0,67427.0,1.61272441]
[1721528484239,0.00084,67428.0,67427.0,1.60472441]
[1721528484583,0.00084,67428.0,67427.0,1.61872441]
[1721528486757,0.00084,67428.0,67427.0,2.10872441]
[1721528486953,0.00084,67428.0,67427.0,1.61872441]
[1721528487334,0.00084,67428.0,67427.0,2.21872441]
[1721528487538,0.00084,67428.0,67427.0,1.61872441]
[1721528487735,0.00084,67428.0,67427.0,2.31872441]
[1721528487933,0.00084,67428.0,67427.0,1.61872441]
[1721528490487,0.00084,67428.0,67427.0,1.28143141]
[1721528492001,0.00084,67428.0,67427.0,1.34082541]
[1721528493451,0.00084,67428.0,67427.0,2.53451841]
[1721528495119,0.00084,67428.0,67427.0,2.84230239]
[1721528495296,0.00084,67428.0,67427.0,2.14230239]
[1721528495499,0.00084,67428.0,67427.0,2.75230239]
[1721528496437,0.00084,67428.0,67427.0,2.78230239]
[1721528496641,0.00084,67428.0,67427.0,2.14230239]
[1721528496845,0.00084,67428.0,67427.0,2.9076512]
[1721528497048,0.00084,67428.0,67427.0,2.9306512]
[1721528497244,0.00084,67428.0,67427.0,2.94530239]
[1721528498642,0.00084,67428.0,67427.0,3.0068563]
[1721528498845,0.00084,67428.0,67427.0,2.9480143]
[1721528499050,0.00084,67428.0,67427.0,2.94799964]
[1721528499388,0.00084,67428.0,67427.0,3.00684164]
[1721528499829,0.00084,67428.0,67427.0,2.94799964]
[1721528501507,0.00084,67428.0,67427.0,3.07312817]
[1721528501708,0.00084,67428.0,67427.0,3.01428617]
[1721528501941,0.00084,67428.0,67427.0,3.31042117]
[1721528502145,0.00084,67428.0,67427.0,2.77280494]
[1721528502403,0.00084,67428.0,67427.0,3.14212552]
[1721528502857,0.00084,67428.0,67427.0,3.14212237]
[1721528503214,0.00084,67428.0,67427.0,3.075839]
[1721528505409,0.00084,67428.0,67427.0,3.01428557]
[1721528505629,0.00084,67428.0,67427.0,3.075839]
[1721528506103,0.00084,67428.0,67427.0,4.23329545]
[1721528506305,0.00084,67428.0,67427.0,4.58411611]
[1721528506527,0.00084,67428.0,67427.0,4.35182311]
[1721528506990,0.00084,67428.0,67427.0,4.24944708]
[1721528507421,0.00084,67428.0,67427.0,4.50074008]
[1721528508056,0.00084,67428.0,67427.0,4.48674008]
[1721528508270,0.00084,67428.0,67427.0,4.50074008]
[1721528508697,0.00084,67428.0,67427.0,4.50070728]